bitfinex/quotes_ETHUSD_20260306
["timestamp","ask_amount","ask_price","bid_price","bid_amount"]
[1772761883212,1.65748197,2088.4,2087.7,0.48876011]
[1772761885506,0.46039329,2088.3,2087.7,0.48876011]
[1772761886639,0.46039329,2088.3,2087.7,0.48976011]
[1772761886819,0.46039329,2088.3,2087.7,1.6872496]
[1772761887141,0.46039329,2088.3,2087.8,0.48876011]
[1772761887708,1.19720333,2088.2,2087.8,0.48876011]
[1772761888238,1.65755634,2088.3,2087.8,1.68618824]
[1772761888538,1.65755634,2088.3,2087.8,0.48876011]
[1772761891041,1.65755634,2088.3,2087.7,0.001]
[1772761891042,0.45225581,2088.2,2087.7,0.001]
[1772761891210,0.45225581,2088.2,2087.7,0.48899357]
[1772761892348,1.19726066,2088.1,2087.7,0.48899357]
[1772761893311,1.64950186,2088.2,2087.8,0.48799357]
[1772761893926,1.19724605,2088.2,2087.8,0.48799357]
[1772761894140,1.64950186,2088.2,2087.7,0.001]
[1772761894317,1.64950186,2088.2,2087.7,0.48899357]
[1772761895245,0.45225581,2088.1,2087.5,1.68659252]
[1772761895543,1.64944319,2088.3,2087.6,0.48799357]
[1772761896326,1.64944319,2088.3,2087.8,0.48799357]
[1772761898551,1.64944319,2088.3,2087.8,1.6854209]
[1772761899949,1.64944319,2088.3,2087.9,0.48799357]
[1772761900350,1.65136728,2088.4,2087.9,0.48799357]
[1772761900542,0.002,2088.1,2087.9,1.68532198]
[1772761901053,0.002,2088.1,2088.0,0.43799357]
[1772761903055,0.002,2088.1,2088.0,1.63531157]
[1772761903354,0.002,2088.1,2088.0,0.43799357]
[1772761903653,0.002,2088.1,2087.8,1.33]
[1772761903825,0.45425581,2088.1,2087.8,2.52742406]
[1772761904026,0.30164053,2088.1,2087.8,2.52742406]
[1772761904223,0.30164053,2088.1,2087.8,2.5274301]
[1772761904741,4.78790328,2088.6,2087.8,2.5274301]
[1772761904742,0.1623025,2088.7,2088.0,0.48799357]
[1772761905162,0.1623025,2088.7,2088.2,0.48799357]
[1772761905327,0.1623025,2088.7,2088.4,0.48799357]
[1772761906528,0.0683492,2088.7,2088.4,0.48799357]
[1772761906854,0.02202561,2088.7,2088.3,1.33]
[1772761907054,0.45225581,2089.4,2088.6,0.48799357]
[1772761907223,1.19645848,2089.5,2088.6,0.48799357]
[1772761907422,1.64871429,2089.5,2088.6,0.48799357]
[1772761907655,0.36241417,2089.9,2089.5,0.45225581]
[1772761907862,9.26981342,2090.0,2089.9,0.85040774]
[1772761908043,9.26981342,2090.0,2089.9,2.18140774]
[1772761908241,1.19591005,2090.5,2089.9,2.18140774]
[1772761908624,0.45225581,2090.3,2089.7,0.48799357]
[1772761908825,0.36241417,2090.4,2089.7,0.48799357]
[1772761909026,0.45225581,2090.7,2089.7,0.48799357]
[1772761909237,0.45225581,2090.5,2089.7,0.48799357]
[1772761909561,0.45225581,2090.5,2089.4,0.48799357]
[1772761909729,1.19582894,2090.6,2089.4,1.68450426]
[1772761909730,0.45225581,2090.3,2089.4,1.68450426]
[1772761909932,0.45225581,2090.3,2089.5,0.48799357]
[1772761911362,0.45225581,2090.2,2089.4,1.68447851]
[1772761911545,0.45225581,2090.0,2089.2,2.32813854]
[1772761911956,0.45225581,2090.0,2089.3,0.48799357]
[1772761912357,0.45225581,2090.0,2089.2,0.6435482]
[1772761912866,0.45225581,2090.0,2089.2,1.84016016]
[1772761913375,0.45225581,2089.9,2089.2,2.32815373]
[1772761913580,4.78400229,2090.7,2089.3,0.48799357]
[1772761913581,1.64808475,2090.6,2089.3,0.48799357]
[1772761913878,1.64808475,2090.6,2089.5,0.48899357]
[1772761913879,0.45225581,2090.5,2089.5,0.48899357]
[1772761914041,0.45225581,2090.5,2089.6,1.0882277]
[1772761914242,0.002,2090.2,2089.7,1.33]
[1772761914465,0.002,2090.2,2089.7,1.81799357]
[1772761914664,0.002,2090.2,2089.8,0.48799357]
[1772761914849,0.45225581,2090.5,2089.8,0.48799357]
[1772761914850,0.002,2090.4,2089.8,0.48799357]
[1772761915056,0.36441417,2090.4,2089.8,0.48799357]
[1772761915243,1.19780682,2090.7,2089.9,0.48799357]
[1772761916446,1.19778475,2090.7,2089.9,0.48799357]
[1772761917047,1.19778026,2090.7,2089.9,0.48799357]
[1772761917271,0.45425581,2090.7,2089.8,0.48799357]
[1772761918775,0.45425581,2090.7,2089.7,1.19634114]
[1772761919155,1.64808475,2090.6,2089.7,1.68433471]
[1772761919582,0.45225581,2090.5,2089.7,1.68432947]
[1772761919885,0.45225581,2090.5,2089.6,1.79659244]
[1772761920187,0.45225581,2090.5,2089.6,0.60023413]
[1772761920390,0.45225581,2090.5,2089.6,1.79663069]
[1772761920594,0.45225581,2090.5,2089.7,0.49314334]
[1772761921058,0.45225581,2090.5,2089.6,0.60023413]
[1772761921254,0.49727891,2090.3,2089.6,0.60023413]
[1772761921488,0.49727891,2090.3,2089.6,1.7966215]
[1772761921862,0.49727891,2090.3,2089.6,0.60023413]
[1772761922285,0.49727891,2090.3,2089.6,1.79662582]
[1772761922984,0.49727891,2090.3,2089.6,2.28976916]
[1772761923361,1.19605779,2090.2,2089.6,2.28976916]
[1772761923864,1.19591667,2090.5,2089.7,0.49314334]
[1772761924059,1.69319558,2090.5,2089.7,0.49314334]
[1772761924589,0.002,2090.7,2089.7,0.49314334]
[1772761924790,1.19777816,2090.7,2089.7,0.49314334]
[1772761925095,1.19777214,2090.7,2089.7,0.49314334]
[1772761925393,1.19777902,2090.7,2089.9,0.49314334]
[1772761925596,0.002,2090.7,2089.9,0.49314334]
[1772761925895,1.83431379,2091.6,2090.1,0.49314334]
[1772761925896,0.49727891,2091.6,2090.1,0.49314334]
[1772761926125,1.19520803,2091.7,2090.2,1.328]
[1772761926126,0.49727891,2091.4,2090.2,1.328]
[1772761926397,0.49727891,2091.4,2090.3,0.49314334]
[1772761927171,0.49727891,2091.4,2090.0,3.10011602]
[1772761927402,1.83431379,2091.2,2089.8,1.19723771]
[1772761927699,0.002,2090.2,2089.8,2.52423771]
[1772761927998,0.002,2090.2,2089.8,0.001]
[1772761928574,0.49927891,2090.2,2089.8,0.001]
[1772761928776,0.49927891,2090.2,2089.6,0.4090456]
[1772761929078,0.49927891,2090.2,2089.5,1e-08]
[1772761929598,0.49727891,2090.0,2089.5,1e-08]
[1772761930479,0.49727891,2090.0,2089.3,0.001]
[1772761930480,0.49727891,2089.8,2089.3,0.001]
[1772761930799,0.49727891,2089.8,2089.0,0.001]
[1772761931571,0.49727891,2089.6,2089.0,0.001]
[1772761931977,1.19631105,2089.8,2089.0,0.001]
[1772761932176,4.23753005,2089.9,2089.0,0.001]
[1772761932375,1.69354409,2089.9,2089.0,0.49414334]
[1772761932607,1.69538535,2090.2,2089.2,0.49314334]
[1772761932820,0.002,2090.2,2089.2,0.49314334]
[1772761933187,0.002,2090.2,2089.3,0.49314334]
[1772761933383,0.002,2090.2,2089.5,0.49314334]
[1772761933588,0.002,2090.2,2089.6,1.68954456]
[1772761933890,0.002,2090.2,2089.7,0.49314334]
[1772761935813,0.49927891,2090.2,2089.3,1.19652927]
[1772761936794,0.49927891,2090.2,2089.2,2.51859104]
[1772761937179,0.49927891,2090.2,2089.2,5.26042992]
[1772761937579,0.49927891,2090.2,2089.2,2.51859104]
[1772761938014,1.19611501,2090.1,2089.2,2.51859104]
[1772761938583,0.49727891,2090.0,2089.2,2.51859104]
[1772761938805,0.49727891,2090.0,2089.2,1.322]
[1772761939308,0.49727891,2090.0,2089.2,2.51862538]
[1772761939607,0.49727891,2090.0,2089.2,1.322]
[1772761939808,0.49727891,2090.0,2089.2,2.51862494]
[1772761940004,1.19622948,2089.9,2089.2,2.51862494]
[1772761940181,1.69350839,2089.9,2089.2,1.322]
[1772761940382,0.49727891,2089.8,2089.0,1.19774414]
[1772761941490,2.54398596,2089.9,2089.4,0.001]
[1772761941691,0.002,2089.9,2089.4,0.001]
[1772761942283,0.002,2090.1,2089.4,1.81714334]
[1772761942482,0.004,2090.3,2089.5,0.49314334]
[1772761942710,0.004,2090.3,2089.4,3.57269554]
[1772761942880,0.50127891,2090.3,2089.4,1.324]
[1772761944211,1.69345115,2090.0,2089.4,1.324]
[1772761944409,0.49727891,2089.9,2089.1,1.19768286]
[1772761945909,0.49727891,2089.7,2089.1,0.001]
[1772761946106,0.49727891,2089.5,2089.1,0.001]
[1772761946410,0.004,2089.4,2089.1,0.001]
[1772761946714,0.50127891,2089.4,2089.1,0.001]
[1772761947618,0.004,2089.4,2089.1,0.001]
[1772761954911,0.004,2089.4,2089.3,0.001]
[1772761958324,0.45619061,2089.9,2089.3,0.001]
[1772761958523,1.6524251,2089.9,2089.3,0.001]
[1772761959209,0.45419061,2089.8,2089.3,0.001]
[1772761959610,1.65053458,2089.7,2089.3,0.001]
[1772761960603,0.45419061,2089.7,2089.3,0.001]
[1772761961424,1.19827515,2089.9,2089.3,0.001]
[1772761961805,0.45619061,2089.9,2089.3,0.001]
[1772761964231,2.0484358,2089.8,2089.3,0.001]
[1772761964438,1.6505312,2089.8,2089.3,0.001]
[1772761967117,0.45419061,2089.8,2089.3,0.001]
[1772761968913,0.002,2089.6,2089.3,0.001]
[1772761970341,0.002,2089.8,2089.4,1.78060651]
[1772761970544,0.002,2089.9,2089.5,0.45560651]
[1772761970711,1.65012974,2090.5,2089.6,0.45560651]
[1772761970907,0.39845322,2090.4,2089.8,0.45560651]
[1772761971140,1.65010576,2090.5,2089.8,0.45560651]
[1772761971335,0.40022909,2090.4,2089.8,0.45560651]
[1772761971645,0.002,2090.4,2089.8,0.45560651]
[1772761972350,0.45619061,2090.3,2089.5,3.45767667]
[1772761972519,0.45419061,2090.3,2089.5,2.52142494]
[1772761973231,0.45419061,2090.1,2089.5,1.325]
[1772761973750,0.45419061,2089.9,2089.5,1.325]
[1772761973957,0.45419061,2089.9,2089.3,1.19757293]
[1772761974126,0.002,2089.8,2089.3,1.19757293]
[1772761976660,0.002,2089.8,2089.3,0.45660651]
[1772761977449,1.65029417,2090.2,2089.3,0.45660651]
[1772761978836,0.45419061,2090.1,2089.4,1.19651574]
[1772761979039,0.45419061,2090.1,2089.3,2.52353796]
[1772761979420,0.45419061,2089.9,2089.3,2.52353796]
[1772761980830,0.4759235,2089.5,2089.1,0.001]
[1772761981155,0.4759235,2089.5,2088.8,1.328]
[1772761981156,0.4759235,2089.5,2088.8,0.001]
[1772761981456,0.4759235,2089.3,2088.8,0.001]
[1772761983024,1.67255378,2089.2,2088.8,0.001]
[1772761983450,1.67255378,2089.2,2089.0,0.001]
[1772761984130,0.4759235,2089.2,2089.0,0.001]
[1772761984646,0.001,2089.1,2089.0,0.001]
[1772761985548,0.4769235,2089.1,2088.8,0.001]
[1772761985753,0.001,2089.0,2088.8,0.001]
[1772761986168,0.4759235,2089.0,2088.8,0.001]
[1772761986456,0.001,2088.9,2088.8,0.001]
[1772761986756,1.67256453,2089.2,2088.8,0.001]
[1772761986976,0.001,2089.1,2088.8,0.001]
[1772761987876,0.4769235,2089.0,2088.8,0.001]
[1772761988037,0.4759235,2089.0,2088.8,0.001]
[1772761989163,0.4759235,2089.3,2088.8,0.001]
[1772761989464,0.001,2089.2,2088.8,0.001]
[1772761990459,0.001,2089.1,2088.8,0.001]
[1772761990638,0.4769235,2089.1,2088.8,0.001]
[1772761990839,0.4769235,2089.0,2088.7,0.54649598]
[1772761991062,0.4769235,2089.2,2088.7,1.7434098]
[1772761991264,0.4769235,2089.2,2088.7,1.74339575]
[1772761992458,1.67361025,2089.2,2088.7,1.74340509]
[1772761992663,0.4769235,2089.1,2088.5,1.327]
[1772761992966,0.4769235,2089.1,2088.5,2.52402675]
[1772761993272,0.001,2089.0,2088.6,0.4989159]
[1772761993570,0.001,2089.1,2088.6,0.4989159]
[1772761993767,0.001,2089.2,2088.6,0.4989159]
[1772761994072,0.4759235,2089.0,2088.5,2.52402675]
[1772761995563,1.67271328,2089.0,2088.5,2.52402845]
[1772761995766,0.4769235,2088.9,2088.2,1.19715155]
[1772761995969,0.4769235,2088.9,2088.8,0.001]
[1772761996171,0.4769235,2088.9,2088.2,1.19715155]
[1772761996468,0.001,2088.9,2088.3,0.4989159]
[1772761996764,0.001,2088.9,2088.5,0.4999159]
[1772761997273,0.001,2088.8,2088.5,0.001]
[1772761997475,1.19688419,2088.8,2088.5,0.001]
[1772761997976,0.001,2088.7,2088.5,0.001]
[1772761998152,0.001,2088.8,2088.5,0.001]
[1772761998978,0.4769235,2088.7,2088.5,0.001]
[1772761999285,0.4769235,2088.7,2087.8,0.4989159]
[1772761999286,0.4759235,2088.7,2087.8,0.4989159]
[1772761999443,1.67389754,2088.6,2087.9,1.19737535]
[1772761999642,1.67289754,2088.6,2087.9,1.19737535]
[1772762000145,0.4759235,2088.5,2087.8,1.69630516]
[1772762000370,0.4769235,2088.5,2087.8,1.69630516]
[1772762000565,1.19697404,2088.6,2087.8,1.69630516]
[1772762000566,0.4769235,2088.4,2087.8,1.19738926]
[1772762000768,0.4759235,2088.4,2087.7,1.19845294]
[1772762000948,0.001,2088.3,2087.7,1.69736884]
[1772762001149,0.001,2088.3,2087.8,0.4989159]
[1772762001345,5.26326792,2088.9,2087.8,0.4989159]
[1772762001671,0.4769235,2088.8,2088.0,0.4989159]
[1772762003067,4.78734442,2088.9,2087.9,1.19737535]
[1772762003068,0.4759235,2088.6,2087.9,1.19737535]
[1772762003366,0.4759235,2088.6,2087.8,1.19742157]
[1772762003671,0.4759235,2088.6,2087.7,5.28986273]
[1772762003672,0.4759235,2088.4,2087.7,5.28986273]
[1772762005069,0.4769235,2088.3,2087.7,1.19849006]
[1772762005277,0.4769235,2088.3,2087.7,0.001]
[1772762005278,0.4759235,2088.3,2087.7,0.001]
[1772762005950,1.67412683,2088.2,2087.7,0.001]
[1772762006355,0.4759235,2088.1,2087.7,0.001]
[1772762006674,0.001,2088.1,2087.7,0.001]
[1772762006876,0.4759235,2088.8,2087.7,0.4999159]
[1772762007059,0.4769235,2088.8,2087.7,0.4999159]
[1772762007765,0.001,2088.7,2087.9,0.4989159]
[1772762008357,0.001,2088.6,2087.9,0.4989159]
[1772762008756,0.001,2088.5,2087.9,0.4989159]
[1772762008946,0.45165139,2088.7,2087.9,0.4989159]
[1772762009151,0.002,2089.0,2087.9,0.4989159]
[1772762009351,0.002,2089.0,2088.0,0.47459574]
[1772762009352,1.19874697,2089.0,2088.0,0.47459574]
[1772762009546,0.45265139,2088.9,2088.0,0.47459574]
[1772762009766,0.002,2088.6,2088.1,1.19726066]
[1772762010076,0.002,2088.6,2088.1,2.52926066]
[1772762010673,0.45351156,2088.6,2088.1,1.332]
[1772762011581,0.001,2088.5,2088.1,1.332]
[1772762011965,0.001,2088.5,2088.2,1.19720333]
[1772762012353,0.002,2088.6,2088.2,1.19720333]
[1772762012954,0.002,2088.6,2088.2,1.68900371]
[1772762013283,0.002,2088.8,2088.3,0.49180038]
[1772762013985,0.002,2088.8,2088.4,1.19708868]
[1772762014851,0.45251156,2088.8,2088.1,2.52922195]
[1772762015050,0.45251156,2088.8,2088.1,1.19722195]
[1772762015253,0.45251156,2088.8,2087.9,1.198335]
[1772762016486,0.45051156,2088.6,2087.9,1.198335]
[1772762018617,1.19703136,2088.5,2087.9,1.198335]
[1772762019610,1.64752728,2088.6,2087.9,1.198335]
[1772762020404,0.002,2088.8,2088.0,0.49180038]
[1772762020704,0.002,2088.8,2088.2,0.49180038]
[1772762022779,0.002,2088.8,2088.3,1.68894638]
[1772762023491,0.002,2088.8,2088.3,3.02394638]
[1772762023904,0.002,2088.8,2088.4,0.49180038]
[1772762024703,0.002,2088.8,2088.4,0.49280038]
[1772762024912,0.002,2088.6,2088.5,1.19703136]
[1772762027333,0.002,2088.6,2088.4,1.19808049]
[1772762032811,0.002,2088.6,2088.4,0.001]
[1772762036529,0.002,2088.8,2088.4,0.001]
[1772762036833,0.45051156,2088.7,2088.4,0.001]
[1772762038033,1.19886058,2088.8,2088.4,0.001]
[1772762038034,0.002,2088.8,2088.4,0.001]
[1772762038333,0.002,2088.8,2088.4,0.49280038]
[1772762038924,0.002,2088.8,2088.6,0.001]
[1772762040538,0.002,2088.8,2088.6,0.46489549]
[1772762041035,0.002,2088.8,2088.7,1.345]
[1772762044235,0.002,2088.8,2088.7,2.54191674]
[1772762044412,0.002,2089.2,2088.8,0.46389549]
[1772762044811,0.45287159,2089.1,2088.7,1.345]
[1772762046045,0.45287159,2089.1,2088.7,2.54188723]
[1772762046236,1.19864752,2089.2,2088.7,2.54188723]
[1772762047237,0.002,2089.2,2088.7,2.54188723]
[1772762047440,0.45487159,2089.2,2088.7,1.345]
[1772762048529,1.19668756,2089.1,2088.7,1.345]
[1772762048745,1.64955915,2089.1,2088.7,1.345]
[1772762050041,0.45287159,2089.0,2088.7,1.345]
[1772762050241,0.45287159,2089.0,2088.6,0.001]
[1772762050551,1.19680214,2088.9,2088.4,0.001]
[1772762050718,1.64967373,2088.9,2088.4,0.001]
[1772762051630,0.45287159,2089.1,2088.5,0.46389549]
[1772762051830,0.45287159,2088.9,2088.4,0.001]
[1772762052918,0.45287159,2088.9,2088.6,0.001]
[1772762053249,0.002,2088.8,2088.6,0.001]
[1772762053414,0.002,2089.0,2088.6,0.46489549]
[1772762053752,0.002,2089.0,2088.7,1.352]
[1772762054717,0.002,2089.0,2088.6,0.001]
[1772762055042,0.45487159,2089.0,2088.6,0.001]
[1772762055545,0.002,2089.0,2088.6,1.66186181]
[1772762055757,0.002,2089.2,2088.6,1.66186181]
[1772762055915,0.002,2089.2,2088.7,0.46389549]
[1772762056719,0.002,2089.2,2088.8,1.19685944]
[1772762056920,0.002,2089.2,2088.7,1.66076606]
[1772762058567,0.45487159,2089.2,2088.6,1.19793952]
[1772762059152,1.64955915,2089.1,2088.6,0.001]
[1772762060055,0.45287159,2089.0,2088.6,0.001]
[1772762061831,1.19680214,2088.9,2088.6,0.001]
[1772762062043,0.45287159,2088.9,2088.6,0.001]
[1772762062775,0.45287159,2088.9,2088.4,1.19804298]
[1772762062776,0.45287159,2088.9,2088.4,0.001]
[1772762063639,0.45287159,2088.9,2088.4,1.19808166]
[1772762064165,0.45287159,2088.8,2088.4,0.001]
[1772762064471,0.45287159,2089.0,2088.4,0.001]
[1772762065554,0.45287159,2089.0,2088.8,0.001]
[1772762066072,1.19680214,2088.9,2088.8,0.001]
[1772762066256,1.64967373,2088.9,2088.8,0.001]
[1772762066455,0.45287159,2088.8,2088.5,0.001]
[1772762066666,0.45287159,2088.8,2088.3,0.001]
[1772762066865,0.45287159,2088.8,2088.1,0.001]
[1772762066866,0.45287159,2088.6,2088.1,0.001]
[1772762067250,0.45287159,2088.8,2088.2,0.001]
[1772762067660,0.45287159,2088.8,2088.3,0.001]
[1772762067878,0.45287159,2088.8,2088.2,0.001]
[1772762068062,1.64978833,2088.7,2088.2,0.001]
[1772762068381,0.46722481,2088.6,2088.2,0.001]
[1772762069371,0.46722481,2088.6,2088.3,0.001]
[1772762069551,0.46722481,2088.6,2088.2,0.001]
[1772762070072,1.19703136,2088.5,2088.3,0.001]
[1772762070376,1.19703136,2088.5,2088.2,0.001]
[1772762070573,0.48046578,2088.4,2088.1,0.001]
[1772762070762,0.48046578,2088.4,2087.9,0.001]
[1772762072358,0.48046578,2088.2,2087.9,0.001]
[1772762072885,0.48046578,2088.2,2087.7,0.001]
[1772762073963,0.48046578,2088.2,2087.5,0.001]
[1772762074269,0.48046578,2088.0,2087.5,0.001]
[1772762074453,0.48046578,2087.5,2086.7,0.001]
[1772762074654,0.48046578,2087.2,2086.7,0.001]
[1772762075190,0.48046578,2087.2,2086.5,0.001]
[1772762075787,0.48046578,2087.2,2086.3,0.001]
[1772762076354,0.48046578,2087.0,2086.3,0.001]
[1772762077099,1.19783431,2087.1,2085.6,4.85567578]
[1772762077100,0.48046578,2086.6,2085.7,0.49425034]
[1772762077278,0.48046578,2086.6,2085.6,1.25957153]
[1772762077971,0.48046578,2086.6,2085.8,1.69381752]
[1772762078167,0.48046578,2086.6,2085.9,0.49425034]
[1772762078368,1.19806392,2086.7,2086.0,1.19846596]
[1772762078597,0.48046578,2086.6,2085.8,0.001]
[1772762079289,0.48046578,2086.6,2086.4,0.001]
[1772762079592,0.48046578,2086.6,2085.8,0.001]
[1772762079980,0.48046578,2086.6,2085.8,0.49525034]
[1772762080568,1.19817876,2086.5,2085.8,0.49525034]
[1772762081795,1.67864454,2086.5,2085.8,0.49525034]
[1772762083096,1.67864454,2086.5,2085.8,0.001]
[1772762083283,0.48046578,2086.4,2085.8,0.001]
[1772762084297,1.67864053,2086.6,2085.8,0.49525034]
[1772762084484,1.19817475,2086.6,2085.9,0.49425034]
[1772762084879,1.19806392,2086.7,2086.0,1.19846596]
[1772762085081,1.67851709,2086.8,2085.9,1.69273001]
[1772762085491,1.67851709,2086.8,2086.0,0.49425034]
[1772762087000,0.48046578,2086.7,2086.0,0.49425034]
[1772762088995,1.19812134,2086.6,2086.0,0.49425034]
[1772762089601,1.67858712,2086.6,2086.0,0.49425034]
[1772762091009,1.67858712,2086.6,2086.2,0.001]
[1772762093502,1.19810601,2086.7,2086.2,0.49525034]
[1772762093706,1.19796577,2086.9,2086.2,0.49525034]
[1772762093911,1.442,2087.0,2086.2,0.49525034]
[1772762094111,1.97446266,2087.3,2086.4,0.49425034]
[1772762094417,0.48046578,2087.2,2086.4,0.49425034]
[1772762095187,1.67830009,2087.1,2086.5,1.19817876]
[1772762095848,1.25720311,2087.3,2086.6,0.49425034]
[1772762095989,1.97447495,2087.3,2086.6,0.49425034]
[1772762096815,0.77673733,2087.3,2086.6,0.49425034]
[1772762097500,0.77673733,2087.3,2086.8,0.49425034]
[1772762098095,0.68502016,2087.3,2086.8,0.49425034]
[1772762099595,0.68502016,2087.3,2086.9,1.19794911]
[1772762099802,0.68502016,2087.3,2086.9,1.69219945]
[1772762100138,0.68502016,2087.3,2086.9,1.19794911]
[1772762100340,0.68502016,2087.3,2087.0,0.47310923]
[1772762101120,1.69616897,2087.9,2087.3,0.47310923]
[1772762101425,0.49875397,2087.8,2087.3,0.47310923]
[1772762101625,0.50075397,2088.0,2087.3,0.47310923]
[1772762101804,1.69811433,2088.0,2087.3,1.67078789]
[1772762102005,1.19936036,2088.0,2087.3,1.67078789]
[1772762102228,0.49875397,2087.9,2087.3,1.67078789]
[1772762102525,1.1993204,2088.0,2087.4,0.47310923]
[1772762103518,0.002,2088.0,2087.4,0.47310923]
[1772762103836,0.002,2087.6,2087.5,1.19760479]
[1772762107028,0.002,2087.6,2087.0,3.0199574]
[1772762107245,0.002,2087.6,2087.1,0.47310923]
[1772762108520,0.002,2087.6,2087.3,0.47310923]
[1772762108723,1.69808124,2088.0,2087.3,0.47310923]
[1772762109224,0.50075397,2088.0,2087.3,0.47310923]
[1772762109429,0.002,2088.0,2087.3,0.47310923]
[1772762109626,1.19932862,2088.0,2087.3,0.47310923]
[1772762111042,0.002,2088.0,2087.4,1.19766216]
[1772762111348,0.002,2088.0,2087.4,1.67077139]
[1772762112024,0.002,2088.0,2087.5,0.47310923]
[1772762113260,0.002,2088.0,2087.6,1.19754742]
[1772762113452,0.49875397,2087.9,2087.0,0.47310923]
[1772762113664,0.002,2088.0,2087.0,0.47310923]
[1772762113844,0.50075397,2088.0,2087.0,0.47310923]
[1772762115242,1.69612932,2087.9,2087.5,0.001]
[1772762115549,0.50075397,2087.8,2087.0,1.19787062]
[1772762115744,0.50075397,2087.8,2086.9,0.47310923]
[1772762115948,0.50075397,2087.8,2087.3,0.001]
[1772762117323,0.49875397,2087.6,2087.3,0.001]
[1772762118553,0.49875397,2087.5,2086.6,1.351]
[1772762118925,0.49875397,2087.5,2086.3,0.47310923]
[1772762119124,0.49875397,2087.4,2086.3,1.67139499]
[1772762119326,0.49875397,2087.2,2086.3,1.6714005]
[1772762119855,0.49875397,2087.2,2086.2,0.001]
[1772762120355,0.49875397,2087.2,2086.2,1.67245481]
[1772762123261,0.49875397,2087.0,2086.2,1.67245481]
[1772762124262,0.49875397,2087.0,2086.2,0.47410923]
[1772762124566,0.49875397,2087.0,2086.2,1.67245333]
[1772762125261,1.69670308,2086.9,2086.2,0.47410923]
[1772762125445,0.49875397,2086.8,2086.2,0.47410923]
[1772762125964,0.49875397,2086.8,2086.2,0.001]
[1772762126768,0.49875397,2086.8,2086.2,1.19934886]
[1772762127069,0.49875397,2086.8,2086.2,0.001]
[1772762127372,1.69681789,2086.7,2086.2,0.001]
[1772762127931,0.49875397,2086.7,2086.2,0.001]
[1772762128136,0.49875397,2086.7,2086.4,0.001]
[1772762129440,1.19812134,2086.6,2086.4,0.001]
[1772762129834,1.19781847,2087.2,2086.5,0.46879999]
[1772762130040,0.46166015,2087.3,2086.5,0.46879999]
[1772762130957,1.19968819,2087.4,2086.5,0.46879999]
[1772762131461,1.66134834,2087.4,2086.7,0.46879999]
[1772762131838,1.19968819,2087.4,2086.7,0.46879999]
[1772762132257,1.19969616,2087.4,2086.7,0.46879999]
[1772762132469,1.66135631,2087.4,2086.7,0.46879999]
[1772762132975,0.46166015,2087.3,2086.4,1.66802983]
[1772762133270,0.46166015,2087.3,2086.4,1.66803011]
[1772762133469,0.46166015,2087.1,2086.4,1.19923012]
[1772762134872,0.46166015,2087.1,2086.4,1.19922527]
[1772762135571,1.19789171,2087.0,2086.4,1.66802526]
[1772762136064,0.46166015,2086.9,2086.4,0.001]
[1772762136373,0.46166015,2086.9,2086.4,0.46979999]
[1772762137988,0.46166015,2086.9,2086.4,1.66798128]
[1772762138192,1.1979335,2087.0,2086.4,1.66798128]
[1772762138763,1.65953092,2087.1,2086.5,0.46879999]
[1772762139862,0.46166015,2087.0,2086.4,1.19920665]
[1772762140263,0.46166015,2087.0,2086.5,0.46879999]
[1772762140484,0.46166015,2087.0,2086.4,1.66800664]
[1772762141192,0.46166015,2087.0,2086.5,0.46879999]
[1772762141588,0.46166015,2087.0,2086.6,0.001]
[1772762142087,0.46166015,2087.0,2086.6,1.19912134]
[1772762144081,1.65955997,2087.0,2086.6,0.001]
[1772762144394,1.65955997,2087.0,2086.6,1.19911979]
[1772762144763,1.65955997,2087.0,2086.6,0.001]
[1772762144966,0.46166015,2087.0,2086.6,1.19911433]
[1772762145267,1.19985734,2087.1,2086.6,1.66791432]
[1772762145470,0.46166015,2087.0,2086.6,1.66791432]
[1772762145866,0.002,2087.1,2086.7,0.46879999]
[1772762146199,0.002,2087.1,2086.8,1.6668065]
[1772762146687,0.002,2087.1,2086.9,0.46879999]
[1772762147788,0.002,2087.6,2086.9,0.46879999]
[1772762148088,0.002,2087.6,2087.0,0.46879999]
[1772762148291,0.002,2087.6,2087.2,0.46879999]
[1772762149299,1e-08,2087.9,2087.5,0.46879999]
[1772762150292,1e-08,2087.9,2087.6,1.19754742]
[1772762150514,1e-08,2087.9,2087.6,1.66634741]
[1772762153999,1e-08,2087.9,2087.7,0.46879999]
[1772762154798,1e-08,2087.9,2087.8,1.66623269]
[1772762156997,0.34688427,2088.2,2087.9,0.46879999]
[1772762156998,0.14601959,2088.2,2087.9,0.46879999]
[1772762157183,0.002,2088.3,2087.9,0.46879999]
[1772762158871,0.002,2088.3,2088.1,0.42451173]
[1772762159066,0.002,2088.3,2088.1,1.77551173]
[1772762159808,0.002,2088.5,2088.2,0.42451173]
[1772762160332,0.4588476,2088.4,2088.1,1.351]
[1772762160481,0.4588476,2088.4,2087.8,1.19739681]
[1772762161117,1.65595806,2088.4,2087.8,1.62190854]
[1772762161275,1.19907273,2088.5,2087.9,0.42451173]
[1772762161476,0.002,2088.5,2087.9,0.42451173]
[1772762163438,0.002,2088.5,2088.0,1.62182973]
[1772762163706,4.78898006,2089.0,2088.1,0.42251173]
[1772762163707,0.4588476,2088.9,2088.1,0.42251173]
[1772762164004,1.65565519,2088.9,2088.3,0.42251173]
[1772762164904,0.4588476,2088.8,2088.2,1.353]
[1772762165282,0.4588476,2088.6,2087.5,0.42251173]
[1772762165486,0.4588476,2088.6,2087.7,1.353]
[1772762166206,0.4588476,2088.6,2087.7,1.77551173]
[1772762166611,0.4588476,2088.6,2087.7,1.353]
[1772762167384,0.4588476,2088.4,2087.7,2.55046922]
[1772762167724,0.4588476,2088.4,2087.7,2.97298095]
[1772762167886,0.4588476,2088.4,2087.5,1.62011652]
[1772762168786,0.4588476,2088.4,2087.4,0.001]
[1772762168981,0.4588476,2088.4,2087.4,1.62115402]
[1772762169223,0.4588476,2088.4,2087.5,0.42251173]
[1772762169399,1.197146,2088.3,2087.5,1.62007395]
[1772762169707,0.4588476,2088.2,2087.5,1.62007395]
[1772762170414,0.4588476,2088.2,2087.9,0.001]
[1772762171214,0.4588476,2088.2,2087.6,0.001]
[1772762172313,0.4588476,2088.0,2087.6,0.001]